[Event "Klubbmästerskap 2025 Tisdag"]
[Site "Linköping, Sweden"]
[Date "2025.02.04"]
[Round "3.11"]
[White "Leijon, Noah"]
[Black "Ahlström, Per"]
[Result "1-0"]
[TimeControl "90 min + 30 sec/move"]
[WhiteElo "1803"]
[BlackElo "1820"]

1. e4 {[%clk 01:30:56]} {[%emt 00:00:03]} g6 {[%clk 01:30:16]} {[%emt
00:00:44]} 2. d4 {[%clk 01:30:40]} {[%emt 00:00:47]} Bg7 {[%clk 01:30:36]}
{[%emt 00:00:08]} 3. f4 {[%clk 01:30:18]} {[%emt 00:00:53]} d6 {[%clk
01:29:01]} {[%emt 00:02:05]} 4. Nf3 {[%clk 01:30:33]} {[%emt 00:00:15]} c6
{[%clk 01:24:27]} {[%emt 00:05:03]} 5. Be3 {[%clk 01:28:00]} {[%emt 00:03:04]}
Nf6 {[%clk 01:21:24]} {[%emt 00:03:32]} 6. Bd3 {[%clk 01:25:05]} {[%emt
00:03:26]} d5 {[%clk 01:12:20]} {[%emt 00:09:35]} 7. e5 {[%clk 01:20:02]}
{[%emt 00:05:33]} Ng4 {[%clk 01:12:04]} {[%emt 00:00:45]} 8. Bd2 {[%clk
01:17:37]} {[%emt 00:02:56]} b5 {[%clk 01:07:09]} {[%emt 00:05:25]} 9. Nc3
{[%clk 01:09:36]} {[%emt 00:08:31]} h5 {[%clk 00:58:24]} {[%emt 00:09:14]} 10.
Ng5 {[%clk 00:58:14]} {[%emt 00:11:53]} e6 {[%clk 00:57:10]} {[%emt 00:01:44]}
11. h3 {[%clk 00:44:48]} {[%emt 00:13:57]} Nh6 {[%clk 00:56:07]} {[%emt
00:01:33]} 12. g4 {[%clk 00:45:03]} {[%emt 00:00:14]} hxg4 {[%clk 00:55:53]}
{[%emt 00:00:43]} 13. hxg4 {[%clk 00:45:22]} {[%emt 00:00:12]} Qe7 {[%clk
00:53:12]} {[%emt 00:03:11]} 14. Qf3 {[%clk 00:40:47]} {[%emt 00:05:06]} a6
{[%clk 00:45:40]} {[%emt 00:08:02]} 15. Ne2 {[%clk 00:35:25]} {[%emt 00:05:51]}
c5 {[%clk 00:38:37]} {[%emt 00:07:33]} 16. dxc5 {[%clk 00:30:33]} {[%emt
00:05:22]} Nc6 {[%clk 00:37:51]} {[%emt 00:01:15]} 17. b4 {[%clk 00:26:29]}
{[%emt 00:04:35]} Bb7 {[%clk 00:29:44]} {[%emt 00:08:37]} 18. c3 {[%clk
00:20:34]} {[%emt 00:06:25]} Kd7 {[%clk 00:20:33]} {[%emt 00:09:40]} 19. Nd4
{[%clk 00:17:09]} {[%emt 00:03:55]} Nxg4 {[%clk 00:16:46]} {[%emt 00:04:17]} 20.
O-O-O {[%clk 00:13:38]} {[%emt 00:04:01]} Rxh1 {[%clk 00:12:47]} {[%emt
00:04:29]} 21. Rxh1 {[%clk 00:13:50]} {[%emt 00:00:19]} Nxd4 {[%clk 00:12:40]}
{[%emt 00:00:37]} 22. cxd4 {[%clk 00:13:44]} {[%emt 00:00:36]} Nh6 {[%clk
00:12:40]} {[%emt 00:00:30]} 23. Be1 {[%clk 00:12:10]} {[%emt 00:02:04]} f6
{[%clk 00:11:57]} {[%emt 00:01:13]} 24. exf6 {[%clk 00:11:04]} {[%emt
00:01:36]} Qxf6 {[%clk 00:11:56]} {[%emt 00:00:30]} 25. Bf2 {[%clk 00:10:20]}
{[%emt 00:01:14]} Rf8 {[%clk 00:11:10]} {[%emt 00:01:17]} 26. Be3 {[%clk
00:09:04]} {[%emt 00:01:46]} Qxg5 {[%clk 00:07:24]} {[%emt 00:04:16]} 27. fxg5
{[%clk 00:05:14]} {[%emt 00:04:20]} Rxf3 {[%clk 00:07:51]} {[%emt 00:00:03]} 28.
gxh6 {[%clk 00:05:32]} {[%emt 00:00:12]} Bxh6 {[%clk 00:07:29]} {[%emt
00:00:52]} 29. Rxh6 {[%clk 00:05:17]} {[%emt 00:00:45]} Rxe3 {[%clk 00:07:49]}
{[%emt 00:00:10]} 30. Rh7+ {[%clk 00:05:06]} {[%emt 00:00:41]} Kc6 {[%clk
00:08:09]} {[%emt 00:00:10]} 31. Bxg6 {[%clk 00:05:21]} {[%emt 00:00:15]} 1-0

[Event "Klubbmästerskap 2025 Tisdag"]
[Site "Linköping, Sweden"]
[Date "2025.02.04"]
[Round "3.14"]
[White "Karlsson, Andreas 1984"]
[Black "Lantz, Lars-Göran"]
[Result "1-0"]
[TimeControl "90 min + 30 sec/move"]
[WhiteElo "1565"]
[BlackElo "1500"]

1. d4 {[%clk 01:30:56]} {[%emt 00:00:03]} d5 {[%clk 01:30:46]} {[%emt
00:00:15]} 2. c4 {[%clk 01:31:08]} {[%emt 00:00:18]} e6 {[%clk 01:31:01]}
{[%emt 00:00:15]} 3. g3 {[%clk 01:30:53]} {[%emt 00:00:45]} c6 {[%clk
01:29:05]} {[%emt 00:02:27]} 4. cxd5 {[%clk 01:30:49]} {[%emt 00:00:34]} exd5
{[%clk 01:29:07]} {[%emt 00:00:28]} 5. Bg2 {[%clk 01:29:11]} {[%emt 00:02:08]}
Be6 {[%clk 01:28:22]} {[%emt 00:01:15]} 6. Bf4 {[%clk 01:28:10]} {[%emt
00:01:29]} Bd6 {[%clk 01:26:06]} {[%emt 00:02:47]} 7. Bd2 {[%clk 01:26:15]}
{[%emt 00:02:25]} Qb6 {[%clk 01:25:29]} {[%emt 00:01:07]} 8. Qb3 {[%clk
01:24:38]} {[%emt 00:02:06]} Qxb3 {[%clk 01:21:04]} {[%emt 00:04:56]} 9. axb3
{[%clk 01:24:33]} {[%emt 00:00:35]} Nf6 {[%clk 01:18:06]} {[%emt 00:03:28]} 10.
Nc3 {[%clk 01:24:29]} {[%emt 00:00:34]} O-O {[%emt 00:01:36]} 11. e4 {[%emt
00:00:32]} dxe4 {[%clk 01:15:06]} {[%emt 00:01:22]} 12. Nge2 {[%clk 01:23:17]}
{[%emt 00:01:42]} Bd5 {[%clk 01:14:34]} {[%emt 00:01:00]} 13. Nxd5 {[%clk
01:20:20]} {[%emt 00:03:30]} cxd5 {[%clk 01:14:44]} {[%emt 00:00:20]} 14. O-O
{[%clk 01:20:25]} {[%emt 00:00:24]} Nc6 {[%clk 01:15:00]} {[%emt 00:00:15]} 15.
f3 {[%clk 01:15:36]} {[%emt 00:05:19]} Rfe8 {[%clk 01:10:40]} {[%emt 00:04:50]}
16. fxe4 {[%clk 01:12:37]} {[%emt 00:03:28]} Nxe4 {[%clk 01:10:25]} {[%emt
00:00:46]} 17. Bf4 {[%clk 01:10:21]} {[%emt 00:02:47]} Bxf4 {[%clk 01:08:24]}
{[%emt 00:02:31]} 18. Nxf4 {[%clk 01:10:13]} {[%emt 00:00:37]} Rad8 {[%clk
01:02:59]} {[%emt 00:05:55]} 19. Rfd1 {[%clk 01:08:05]} {[%emt 00:02:37]} a6
{[%clk 01:02:26]} {[%emt 00:01:04]} 20. Ra4 {[%clk 01:05:41]} {[%emt 00:02:54]}
a5 {[%clk 00:56:18]} {[%emt 00:06:38]} 21. Bf1 {[%clk 01:05:00]} {[%emt
00:01:10]} Nf6 {[%clk 00:56:08]} {[%emt 00:00:39]} 22. Bb5 {[%clk 01:03:20]}
{[%emt 00:02:11]} Rd6 {[%clk 00:53:28]} {[%emt 00:03:10]} 23. Nd3 {[%clk
01:01:13]} {[%emt 00:02:37]} b6 {[%clk 00:52:22]} {[%emt 00:01:36]} 24. Ne5
{[%clk 01:01:20]} {[%emt 00:00:22]} Ree6 {[%clk 00:49:53]} {[%emt 00:02:59]} 25.
Nxc6 {[%clk 00:59:34]} {[%emt 00:02:16]} Rxc6 {[%clk 00:50:02]} {[%emt
00:00:21]} 26. Bxc6 {[%emt 00:00:15]} Rxc6 {[%clk 00:50:25]} {[%emt 00:00:04]}
27. b4 {[%clk 01:00:09]} {[%emt 00:00:13]} g6 {[%clk 00:47:19]} {[%emt
00:03:36]} 28. bxa5 {[%clk 01:00:11]} {[%emt 00:00:28]} bxa5 {[%clk 00:45:51]}
{[%emt 00:01:59]} 29. Rxa5 {[%clk 01:00:28]} {[%emt 00:00:11]} Rb6 {[%clk
00:45:19]} {[%emt 00:01:03]} 30. Rd2 {[%clk 00:59:44]} {[%emt 00:01:14]} Kg7
{[%clk 00:44:23]} {[%emt 00:01:26]} 31. Kg2 {[%clk 00:57:43]} {[%emt 00:02:31]}
Rb3 {[%clk 00:42:18]} {[%emt 00:02:35]} 32. Ra3 {[%clk 00:57:15]} {[%emt
00:00:58]} Rb5 {[%clk 00:36:31]} {[%emt 00:06:17]} 33. b3 {[%clk 00:56:56]}
{[%emt 00:00:49]} Ne4 {[%clk 00:35:51]} {[%emt 00:01:10]} 34. Rb2 {[%clk
00:57:06]} {[%emt 00:00:20]} Rb4 {[%clk 00:32:39]} {[%emt 00:03:42]} 35. Ra4
{[%clk 00:57:14]} {[%emt 00:00:22]} Rxa4 {[%clk 00:32:26]} {[%emt 00:00:43]} 36.
bxa4 {[%clk 00:57:34]} {[%emt 00:00:11]} Nc3 {[%clk 00:32:27]} {[%emt
00:00:27]} 37. a5 {[%clk 00:57:50]} {[%emt 00:00:16]} 1-0

[Event "Klubbmästerskap 2025 Tisdag"]
[Site "Linköping, Sweden"]
[Date "2025.02.04"]
[Round "3.15"]
[White "Svensson, Torgil"]
[Black "Giertz, Olov"]
[Result "1-0"]
[TimeControl "90 min + 30 sec/move"]
[WhiteElo "1547"]
[BlackElo "1585"]

1. e4 {[%clk 01:30:56]} {[%emt 00:00:03]} e5 {[%clk 01:30:48]} {[%emt
00:00:13]} 2. Bc4 {[%clk 01:31:18]} {[%emt 00:00:08]} Nf6 {[%clk 01:30:44]}
{[%emt 00:00:34]} 3. d3 {[%clk 01:30:41]} {[%emt 00:01:06]} d5 {[%clk
01:31:04]} {[%emt 00:00:10]} 4. exd5 {[%clk 01:31:03]} {[%emt 00:00:08]} Nxd5
{[%clk 01:31:25]} {[%emt 00:00:10]} 5. Nf3 {[%clk 01:29:42]} {[%emt 00:01:51]}
f6 {[%clk 01:31:28]} {[%emt 00:00:27]} 6. O-O {[%clk 01:29:01]} {[%emt
00:01:11]} c6 {[%clk 01:31:52]} {[%emt 00:00:06]} 7. h3 {[%clk 01:28:49]}
{[%emt 00:00:42]} b5 {[%clk 01:31:58]} {[%emt 00:00:24]} 8. Bb3 {[%clk
01:28:58]} {[%emt 00:00:21]} Bb4 {[%clk 01:32:10]} {[%emt 00:00:18]} 9. c3
{[%clk 01:29:13]} {[%emt 00:00:15]} Bc5 {[%clk 01:32:18]} {[%emt 00:00:21]} 10.
d4 {[%clk 01:28:39]} {[%emt 00:01:04]} exd4 {[%emt 00:00:46]} 11. Re1+ {[%clk
01:27:59]} {[%emt 00:00:49]} Ne7 {[%clk 01:32:26]} {[%emt 00:00:27]} 12. cxd4
{[%clk 01:28:02]} {[%emt 00:00:27]} Bb4 {[%clk 01:31:22]} {[%emt 00:01:34]} 13.
Bd2 {[%clk 01:28:06]} {[%emt 00:00:25]} Bxd2 {[%clk 01:31:44]} {[%emt
00:00:08]} 14. Qxd2 {[%clk 01:28:26]} {[%emt 00:00:11]} Kf8 {[%emt 00:01:07]}
15. Nc3 Qd6 16. Ne4 Qd7 17. Nxf6 gxf6 18. Qh6+ Ke8 19. Qxf6 Kd8 20. Qxh8+ Qe8
21. Qxh7 a5 22. a4 Na6 23. d5 Nc5 24. d6 Nxb3 25. dxe7+ Kd7 26. Rad1+ Kc7 27.
Rd8 Bf5 28. Rxe8 Bxh7 29. Rxa8 Bg6 30. Ne5 Nc5 {[%clk 01:31:08]} 31. Nxg6 1-0